[Event "November 21 Late 2023"]
[Site "https://www.chess.com"]
[Date "2023.11.21"]
[Round "4"]
[White "Butti, Enrique"]
[Black "el_sporco"]
[Result "1-0"]
[Board "149"]
[TimeControl "180+1"]
[WhiteFideId "3700470"]
[WhiteElo "2080"]
[BlackElo "2397"]
[WhiteTeam "PAR"]
[WhiteClock "0:00:36"]
[BlackClock "0:00:06"]

1. d4 {[%clk 0:03:00]}  Nf6 {[%clk 0:02:58]} 2. Nf3 {[%clk 0:02:59]}  d6 {[%clk 0:02:58]} 3. c4 {[%clk 0:02:58]}  g6 {[%clk 0:02:58]} 4. Nc3 {[%clk 0:02:58]}  Bg7 {[%clk 0:02:59]} 5. Bg5 {[%clk 0:02:57]}  O-O {[%clk 0:03:00]} 6. e3 {[%clk 0:02:57]}  c5 {[%clk 0:02:57]} 7. Be2 {[%clk 0:02:54]}  h6 {[%clk 0:02:55]} 8. Bh4 {[%clk 0:02:53]}  Nc6 {[%clk 0:02:51]} 9. d5 {[%clk 0:02:53]}  Ne5 {[%clk 0:02:46]} 10. Nd2 {[%clk 0:02:51]}  g5 {[%clk 0:02:45]} 11. Bg3 {[%clk 0:02:51]}  e6 {[%clk 0:02:44]} 12. f4 {[%clk 0:02:43]}  Ng6 {[%clk 0:02:41]} 13. O-O {[%clk 0:02:41]}  exd5 {[%clk 0:02:25]} 14. cxd5 {[%clk 0:02:40]}  Qe7 {[%clk 0:02:18]} 15. e4 {[%clk 0:02:31]}  gxf4 {[%clk 0:02:16]} 16. Bxf4 {[%clk 0:02:30]}  Nxf4 {[%clk 0:02:17]} 17. Rxf4 {[%clk 0:02:31]}  Nd7 {[%clk 0:02:16]} 18. Bg4 {[%clk 0:02:24]}  Ne5 {[%clk 0:02:13]} 19. Bxc8 {[%clk 0:02:22]}  Raxc8 {[%clk 0:02:14]} 20. Qe2 {[%clk 0:02:19]}  Ng6 {[%clk 0:02:11]} 21. Rf5 {[%clk 0:02:09]}  a6 {[%clk 0:02:12]} 22. a4 {[%clk 0:02:01]}  b5 {[%clk 0:01:57]} 23. axb5 {[%clk 0:02:00]}  axb5 {[%clk 0:01:58]} 24. Nxb5 {[%clk 0:01:53]}  Ra8 {[%clk 0:01:57]} 25. Rxa8 {[%clk 0:01:43]}  Rxa8 {[%clk 0:01:56]} 26. Nc4 {[%clk 0:01:42]}  Nh4 {[%clk 0:01:30]} 27. Rf1 {[%clk 0:01:39]}  Ra6 {[%clk 0:01:24]} 28. g3 {[%clk 0:01:27]}  Ng6 {[%clk 0:01:22]} 29. Qg4 {[%clk 0:01:24]}  Kh7 {[%clk 0:01:20]} 30. h4 {[%clk 0:01:19]}  Ra8 {[%clk 0:00:31]} 31. Qf5 {[%clk 0:01:17]}  Kg8 {[%clk 0:00:29]} 32. Nbxd6 {[%clk 0:01:13]}  Rf8 {[%clk 0:00:28]} 33. h5 {[%clk 0:01:02]}  Ne5 {[%clk 0:00:28]} 34. Nxe5 {[%clk 0:00:59]}  Bxe5 {[%clk 0:00:29]} 35. Nc4 {[%clk 0:00:58]}  Bxg3 {[%clk 0:00:28]} 36. Qg4+ {[%clk 0:00:57]}  Qg5 {[%clk 0:00:28]} 37. Qxg5+ {[%clk 0:00:56]}  hxg5 {[%clk 0:00:29]} 38. e5 {[%clk 0:00:55]}  Re8 {[%clk 0:00:29]} 39. Rf5 {[%clk 0:00:54]}  Bf4 {[%clk 0:00:29]} 40. d6 {[%clk 0:00:53]}  Kg7 {[%clk 0:00:28]} 41. Kg2 {[%clk 0:00:50]}  Kh6 {[%clk 0:00:27]} 42. Kf3 {[%clk 0:00:49]}  Kxh5 {[%clk 0:00:26]} 43. Rxf7 {[%clk 0:00:45]}  Kg6 {[%clk 0:00:22]} 44. Rf6+ {[%clk 0:00:43]}  Kg7 {[%clk 0:00:22]} 45. Rf5 {[%clk 0:00:42]}  Rd8 {[%clk 0:00:18]} 46. Ke4 {[%clk 0:00:38]}  Kg6 {[%clk 0:00:17]} 47. Rf6+ {[%clk 0:00:38]}  Kg7 {[%clk 0:00:17]} 48. Kd5 {[%clk 0:00:38]}  Bxe5 {[%clk 0:00:07]} 49. Kxe5 {[%clk 0:00:37]}  g4 {[%clk 0:00:08]} 50. Rf4 {[%clk 0:00:36]}  g3 {[%clk 0:00:08]} 51. Rg4+ {[%clk 0:00:36]}  Kf7 {[%clk 0:00:06]} 52. Rxg3 {[%clk 0:00:36]} 1-0

[Event "November 21 Late 2023"]
[Site "https://www.chess.com"]
[Date "2023.11.21"]
[Round "4"]
[White "Maisuradze, Nino"]
[Black "Manfroi, Alexander Giannini"]
[Result "1-0"]
[Board "151"]
[TimeControl "180+1"]
[WhiteFideId "13601717"]
[BlackFideId "22739335"]
[WhiteElo "2108"]
[BlackElo "1618"]
[WhiteTeam "FRA"]
[BlackTeam "BRA"]
[WhiteClock "0:01:39"]
[BlackClock "0:00:13"]

1. b3 {[%clk 0:03:00]}  d5 {[%clk 0:02:58]} 2. Bb2 {[%clk 0:03:00]}  Nf6 {[%clk 0:02:59]} 3. f4 {[%clk 0:02:59]}  Bf5 {[%clk 0:02:57]} 4. Nf3 {[%clk 0:02:59]}  e6 {[%clk 0:02:58]} 5. e3 {[%clk 0:03:00]}  Nbd7 {[%clk 0:02:56]} 6. Ne5 {[%clk 0:02:54]}  Ne4 {[%clk 0:02:47]} 7. Qf3 {[%clk 0:02:50]}  f6 {[%clk 0:02:37]} 8. Nxd7 {[%clk 0:02:49]}  Qxd7 {[%clk 0:02:38]} 9. d3 {[%clk 0:02:48]}  Nd6 {[%clk 0:02:33]} 10. g4 {[%clk 0:02:47]}  Bg6 {[%clk 0:02:31]} 11. h4 {[%clk 0:02:47]}  h5 {[%clk 0:02:22]} 12. Bh3 {[%clk 0:02:46]}  hxg4 {[%clk 0:02:10]} 13. Bxg4 {[%clk 0:02:44]}  f5 {[%clk 0:02:10]} 14. Bh3 {[%clk 0:02:39]}  Bh5 {[%clk 0:02:10]} 15. Qg3 {[%clk 0:02:38]}  O-O-O {[%clk 0:02:08]} 16. Nd2 {[%clk 0:02:37]}  Rg8 {[%clk 0:02:01]} 17. Bg2 {[%clk 0:02:34]}  Nf7 {[%clk 0:01:48]} 18. Bf3 {[%clk 0:02:33]}  Bxf3 {[%clk 0:01:46]} 19. Nxf3 {[%clk 0:02:34]}  Nh6 {[%clk 0:01:45]} 20. Ne5 {[%clk 0:02:33]}  Qe8 {[%clk 0:01:35]} 21. O-O-O {[%clk 0:02:32]}  Bd6 {[%clk 0:01:34]} 22. h5 {[%clk 0:02:27]}  Bxe5 {[%clk 0:01:30]} 23. Bxe5 {[%clk 0:02:27]}  Ng4 {[%clk 0:01:31]} 24. Bb2 {[%clk 0:02:26]}  a5 {[%clk 0:01:25]} 25. e4 {[%clk 0:02:18]}  d4 {[%clk 0:01:22]} 26. exf5 {[%clk 0:02:17]}  exf5 {[%clk 0:01:23]} 27. Rde1 {[%clk 0:02:16]}  Qc6 {[%clk 0:01:03]} 28. a4 {[%clk 0:02:09]}  Rde8 {[%clk 0:01:00]} 29. Bxd4 {[%clk 0:02:01]}  Rxe1+ {[%clk 0:00:46]} 30. Rxe1 {[%clk 0:02:00]}  Qd6 {[%clk 0:00:40]} 31. Bb2 {[%clk 0:01:57]}  Qh6 {[%clk 0:00:36]} 32. Qh4 {[%clk 0:01:52]}  Qxf4+ {[%clk 0:00:34]} 33. Kb1 {[%clk 0:01:52]}  Qf2 {[%clk 0:00:22]} 34. Qxf2 {[%clk 0:01:43]}  Nxf2 {[%clk 0:00:23]} 35. Rf1 {[%clk 0:01:43]}  Ng4 {[%clk 0:00:17]} 36. Rxf5 {[%clk 0:01:44]}  g6 {[%clk 0:00:13]} 37. Rg5 {[%clk 0:01:43]}  gxh5 {[%clk 0:00:13]} 38. Rxg8+ {[%clk 0:01:39]} 1-0

[Event "November 21 Late 2023"]
[Site "https://www.chess.com"]
[Date "2023.11.21"]
[Round "4"]
[White "Gallegos Diaz, Carlos Alberto"]
[Black "Kniazev, Igor"]
[Result "1-0"]
[Board "152"]
[TimeControl "180+1"]
[WhiteFideId "3900886"]
[BlackFideId "4136349"]
[WhiteElo "2362"]
[BlackElo "1862"]
[WhiteTeam "VEN"]
[BlackTeam "RUS"]
[WhiteClock "0:00:51"]
[BlackClock "0:00:19"]

1. e4 {[%clk 0:03:00]}  e5 {[%clk 0:02:59]} 2. Nc3 {[%clk 0:03:00]}  Nf6 {[%clk 0:02:58]} 3. Nge2 {[%clk 0:02:59]}  Bc5 {[%clk 0:02:53]} 4. g3 {[%clk 0:02:57]}  d5 {[%clk 0:02:50]} 5. exd5 {[%clk 0:02:54]}  Nxd5 {[%clk 0:02:49]} 6. Bg2 {[%clk 0:02:54]}  c6 {[%clk 0:02:49]} 7. O-O {[%clk 0:02:52]}  O-O {[%clk 0:02:49]} 8. d4 {[%clk 0:02:51]}  exd4 {[%clk 0:02:43]} 9. Nxd4 {[%clk 0:02:52]}  Nxc3 {[%clk 0:02:41]} 10. bxc3 {[%clk 0:02:51]}  Nd7 {[%clk 0:02:36]} 11. Be3 {[%clk 0:02:49]}  Re8 {[%clk 0:02:22]} 12. a4 {[%clk 0:02:47]}  a6 {[%clk 0:02:20]} 13. a5 {[%clk 0:02:45]}  Ba7 {[%clk 0:02:14]} 14. Re1 {[%clk 0:02:44]}  Ne5 {[%clk 0:02:13]} 15. Rb1 {[%clk 0:02:39]}  Nc4 {[%clk 0:02:10]} 16. Bg5 {[%clk 0:02:31]}  f6 {[%clk 0:02:03]} 17. Qh5 {[%clk 0:01:46]}  Rxe1+ {[%clk 0:01:26]} 18. Rxe1 {[%clk 0:01:43]}  Bf5 {[%clk 0:01:21]} 19. Nxf5 {[%clk 0:01:27]}  fxg5 {[%clk 0:01:17]} 20. Ne7+ {[%clk 0:01:09]}  Kh8 {[%clk 0:01:06]} 21. Be4 {[%clk 0:01:06]}  g6 {[%clk 0:00:18]} 22. Bxg6 {[%clk 0:01:01]}  Bxf2+ {[%clk 0:00:18]} 23. Kh1 {[%clk 0:00:53]}  Qf8 {[%clk 0:00:19]} 24. Qxh7# {[%clk 0:00:51]} 1-0

[Event "November 21 Late 2023"]
[Site "https://www.chess.com"]
[Date "2023.11.21"]
[Round "4"]
[White "Smirnov, Timofey"]
[Black "Gerbelli Neto, Eduardo"]
[Result "1/2-1/2"]
[Board "154"]
[TimeControl "180+1"]
[WhiteFideId "24176427"]
[BlackFideId "2103281"]
[WhiteElo "2245"]
[BlackElo "2178"]
[WhiteTeam "RUS"]
[BlackTeam "BRA"]
[WhiteClock "0:00:11"]
[BlackClock "0:00:22"]

1. d4 {[%clk 0:02:59]}  d5 {[%clk 0:02:57]} 2. Bf4 {[%clk 0:02:59]}  Nf6 {[%clk 0:02:56]} 3. e3 {[%clk 0:03:00]}  Bf5 {[%clk 0:02:55]} 4. Nf3 {[%clk 0:02:59]}  e6 {[%clk 0:02:55]} 5. Nbd2 {[%clk 0:02:59]}  Be7 {[%clk 0:02:50]} 6. Be2 {[%clk 0:02:54]}  O-O {[%clk 0:02:50]} 7. Ne5 {[%clk 0:02:52]}  Nfd7 {[%clk 0:02:49]} 8. g4 {[%clk 0:02:52]}  Nxe5 {[%clk 0:02:44]} 9. gxf5 {[%clk 0:02:44]}  Nec6 {[%clk 0:02:30]} 10. fxe6 {[%clk 0:02:30]}  fxe6 {[%clk 0:02:31]} 11. a3 {[%clk 0:02:30]}  Bd6 {[%clk 0:02:22]} 12. Bg3 {[%clk 0:02:17]}  e5 {[%clk 0:02:10]} 13. dxe5 {[%clk 0:02:13]}  Nxe5 {[%clk 0:02:07]} 14. Nf3 {[%clk 0:02:08]}  Nxf3+ {[%clk 0:02:00]} 15. Bxf3 {[%clk 0:02:06]}  c6 {[%clk 0:02:00]} 16. Bxd5+ {[%clk 0:01:52]}  Kh8 {[%clk 0:01:16]} 17. Bb3 {[%clk 0:01:42]}  Bxg3 {[%clk 0:01:06]} 18. Qxd8 {[%clk 0:01:41]}  Bxf2+ {[%clk 0:01:05]} 19. Ke2 {[%clk 0:01:32]}  Rxd8 {[%clk 0:01:06]} 20. Kxf2 {[%clk 0:01:31]}  Na6 {[%clk 0:01:06]} 21. Rad1 {[%clk 0:01:23]}  Nc5 {[%clk 0:01:06]} 22. Ba2 {[%clk 0:01:16]}  Rf8+ {[%clk 0:01:01]} 23. Ke2 {[%clk 0:01:15]}  Ne4 {[%clk 0:01:00]} 24. Rhf1 {[%clk 0:01:12]}  Rxf1 {[%clk 0:00:53]} 25. Rxf1 {[%clk 0:01:11]}  Rd8 {[%clk 0:00:49]} 26. Rd1 {[%clk 0:01:11]}  Rxd1 {[%clk 0:00:40]} 27. Kxd1 {[%clk 0:01:11]}  g5 {[%clk 0:00:40]} 28. Ke2 {[%clk 0:01:05]}  Kg7 {[%clk 0:00:37]} 29. Bc4 {[%clk 0:00:59]}  Kf6 {[%clk 0:00:33]} 30. Bd3 {[%clk 0:00:58]}  Ke5 {[%clk 0:00:33]} 31. Kf3 {[%clk 0:00:49]}  Nd2+ {[%clk 0:00:31]} 32. Kg4 {[%clk 0:00:47]}  h6 {[%clk 0:00:29]} 33. Kh5 {[%clk 0:00:43]}  Nf3 {[%clk 0:00:29]} 34. Kxh6 {[%clk 0:00:37]}  g4 {[%clk 0:00:28]} 35. Kh5 {[%clk 0:00:36]}  Nxh2 {[%clk 0:00:28]} 36. Kh4 {[%clk 0:00:34]}  c5 {[%clk 0:00:24]} 37. Kg3 {[%clk 0:00:32]}  Nf3 {[%clk 0:00:23]} 38. Kxg4 {[%clk 0:00:28]}  Nd2 {[%clk 0:00:23]} 39. b3 {[%clk 0:00:20]}  a6 {[%clk 0:00:23]} 40. a4 {[%clk 0:00:20]}  b5 {[%clk 0:00:20]} 41. axb5 {[%clk 0:00:20]}  axb5 {[%clk 0:00:21]} 42. Bxb5 {[%clk 0:00:18]}  Ke4 {[%clk 0:00:21]} 43. Bd3+ {[%clk 0:00:14]}  Kxe3 {[%clk 0:00:21]} 44. Kf5 {[%clk 0:00:14]}  Kd4 {[%clk 0:00:22]} 45. Ke6 {[%clk 0:00:14]}  Nxb3 {[%clk 0:00:21]} 46. cxb3 {[%clk 0:00:12]}  Kxd3 {[%clk 0:00:22]} 47. Kd6 {[%clk 0:00:12]}  Kd4 {[%clk 0:00:22]} 48. Kc6 {[%clk 0:00:11]}  c4 {[%clk 0:00:21]} 49. bxc4 {[%clk 0:00:11]}  Kxc4 {[%clk 0:00:22]} 1/2-1/2

[Event "November 21 Late 2023"]
[Site "https://www.chess.com"]
[Date "2023.11.21"]
[Round "4"]
[White "Cardozo Munar, Carlos Eduardo"]
[Black "Oliveira, Tiago Batista"]
[Result "1-0"]
[Board "155"]
[TimeControl "180+1"]
[WhiteFideId "4409477"]
[BlackFideId "2108291"]
[WhiteElo "2067"]
[BlackElo "1962"]
[WhiteTeam "COL"]
[BlackTeam "BRA"]
[WhiteClock "0:01:09"]
[BlackClock "0:00:03"]

1. e4 {[%clk 0:02:33]}  c5 {[%clk 0:02:55]} 2. Nf3 {[%clk 0:02:32]}  Nc6 {[%clk 0:02:54]} 3. Nc3 {[%clk 0:02:33]}  d6 {[%clk 0:02:47]} 4. Bc4 {[%clk 0:02:32]}  e6 {[%clk 0:02:38]} 5. O-O {[%clk 0:02:31]}  Nf6 {[%clk 0:02:37]} 6. Re1 {[%clk 0:02:04]}  Be7 {[%clk 0:02:36]} 7. d4 {[%clk 0:01:57]}  cxd4 {[%clk 0:02:36]} 8. Nxd4 {[%clk 0:01:56]}  O-O {[%clk 0:02:13]} 9. h3 {[%clk 0:01:53]}  Bd7 {[%clk 0:02:10]} 10. a3 {[%clk 0:01:52]}  a6 {[%clk 0:02:11]} 11. Ba2 {[%clk 0:01:52]}  b5 {[%clk 0:02:05]} 12. Bg5 {[%clk 0:01:52]}  Rc8 {[%clk 0:01:52]} 13. Qd2 {[%clk 0:01:52]}  Nxd4 {[%clk 0:01:51]} 14. Qxd4 {[%clk 0:01:53]}  Qc7 {[%clk 0:01:18]} 15. Rad1 {[%clk 0:01:52]}  Rfd8 {[%clk 0:01:15]} 16. Re3 {[%clk 0:01:36]}  Bc6 {[%clk 0:01:09]} 17. Rf3 {[%clk 0:01:30]}  e5 {[%clk 0:00:45]} 18. Qe3 {[%clk 0:01:28]}  Qb7 {[%clk 0:00:19]} 19. Bxf6 {[%clk 0:01:27]}  Bxf6 {[%clk 0:00:19]} 20. Bd5 {[%clk 0:01:28]}  a5 {[%clk 0:00:14]} 21. Rd2 {[%clk 0:01:21]}  b4 {[%clk 0:00:14]} 22. axb4 {[%clk 0:01:20]}  axb4 {[%clk 0:00:14]} 23. Bxc6 {[%clk 0:01:21]}  Rxc6 {[%clk 0:00:09]} 24. Nd5 {[%clk 0:01:22]}  Be7 {[%clk 0:00:09]} 25. Qb3 {[%clk 0:01:11]}  Kh8 {[%clk 0:00:04]} 26. Rxf7 {[%clk 0:01:10]}  Rc7 {[%clk 0:00:03]} 27. Nxc7 {[%clk 0:01:09]} 1-0

[Event "November 21 Late 2023"]
[Site "https://www.chess.com"]
[Date "2023.11.21"]
[Round "5"]
[White "Shimanov, Aleksandr"]
[Black "Esipenko, Andrey"]
[Result "0-1"]
[Board "3"]
[TimeControl "180+1"]
[WhiteFideId "4198603"]
[BlackFideId "24175439"]
[WhiteElo "2611"]
[BlackElo "2615"]
[WhiteTeam "RUS"]
[BlackTeam "FID"]
[WhiteClock "0:00:01"]
[BlackClock "0:00:03"]

1. e4 {[%clk 0:02:57]}  e5 {[%clk 0:02:59]} 2. Nf3 {[%clk 0:02:55]}  Nc6 {[%clk 0:02:59]} 3. Nc3 {[%clk 0:02:55]}  Nf6 {[%clk 0:02:49]} 4. h3 {[%clk 0:02:54]}  Bb4 {[%clk 0:02:48]} 5. Nd5 {[%clk 0:02:54]}  Nxd5 {[%clk 0:02:41]} 6. exd5 {[%clk 0:02:55]}  Nd4 {[%clk 0:02:40]} 7. Nh2 {[%clk 0:02:42]}  Be7 {[%clk 0:02:16]} 8. c3 {[%clk 0:02:05]}  Nf5 {[%clk 0:02:16]} 9. Bd3 {[%clk 0:02:03]}  Nh4 {[%clk 0:02:10]} 10. O-O {[%clk 0:02:03]}  O-O {[%clk 0:02:10]} 11. Bc2 {[%clk 0:02:02]}  f5 {[%clk 0:02:01]} 12. d4 {[%clk 0:01:54]}  d6 {[%clk 0:02:00]} 13. f4 {[%clk 0:01:43]}  e4 {[%clk 0:01:48]} 14. Rf2 {[%clk 0:01:39]}  c6 {[%clk 0:00:48]} 15. Bb3 {[%clk 0:01:37]}  Kh8 {[%clk 0:00:49]} 16. Nf1 {[%clk 0:01:37]}  Bf6 {[%clk 0:00:48]} 17. Ne3 {[%clk 0:01:36]}  Ng6 {[%clk 0:00:49]} 18. Bd2 {[%clk 0:01:32]}  Bh4 {[%clk 0:00:47]} 19. Rf1 {[%clk 0:01:31]}  Bg3 {[%clk 0:00:47]} 20. Nc2 {[%clk 0:01:26]}  Qh4 {[%clk 0:00:45]} 21. Qc1 {[%clk 0:01:24]}  Bd7 {[%clk 0:00:44]} 22. Be3 {[%clk 0:01:13]}  Rac8 {[%clk 0:00:43]} 23. Qd2 {[%clk 0:01:12]}  cxd5 {[%clk 0:00:43]} 24. Bxd5 {[%clk 0:01:12]}  Bb5 {[%clk 0:00:44]} 25. a4 {[%clk 0:00:36]}  Bxf1 {[%clk 0:00:44]} 26. Rxf1 {[%clk 0:00:37]}  Ne7 {[%clk 0:00:42]} 27. Be6 {[%clk 0:00:35]}  Rcd8 {[%clk 0:00:20]} 28. d5 {[%clk 0:00:35]}  b6 {[%clk 0:00:16]} 29. Na3 {[%clk 0:00:36]}  h6 {[%clk 0:00:09]} 30. Nb5 {[%clk 0:00:36]}  Kh7 {[%clk 0:00:09]} 31. Nxa7 {[%clk 0:00:33]}  g5 {[%clk 0:00:10]} 32. Nb5 {[%clk 0:00:31]}  Ng6 {[%clk 0:00:09]} 33. fxg5 {[%clk 0:00:23]}  f4 {[%clk 0:00:09]} 34. Bxb6 {[%clk 0:00:23]}  e3 {[%clk 0:00:05]} 35. Qd3 {[%clk 0:00:21]}  Bf2+ {[%clk 0:00:05]} 36. Kh1 {[%clk 0:00:20]}  f3 {[%clk 0:00:05]} 37. gxf3 {[%clk 0:00:04]}  Rxf3 {[%clk 0:00:04]} 38. Kh2 {[%clk 0:00:02]}  Qg3+ {[%clk 0:00:04]} 39. Kh1 {[%clk 0:00:03]}  Qh4 {[%clk 0:00:03]} 40. Kg2 {[%clk 0:00:03]}  Rdf8 {[%clk 0:00:03]} 41. Qe2 {[%clk 0:00:02]}  Rg3+ {[%clk 0:00:03]} 42. Kh2 {[%clk 0:00:03]}  Rxh3+ {[%clk 0:00:03]} 43. Kg2 {[%clk 0:00:01]}  Qg3# {[%clk 0:00:03]} 0-1

[Event "November 21 Late 2023"]
[Site "https://www.chess.com"]
[Date "2023.11.21"]
[Round "5"]
[White "Sjugirov, Sanan"]
[Black "Xiong, Jeffery"]
[Result "0-1"]
[Board "4"]
[TimeControl "180+1"]
[WhiteFideId "4189302"]
[BlackFideId "2047640"]
[WhiteElo "2569"]
[BlackElo "2726"]
[WhiteTeam "HUN"]
[BlackTeam "USA"]
[WhiteClock "0:00:00"]
[BlackClock "0:00:13"]

1. d4 {[%clk 0:03:00]}  d5 {[%clk 0:02:58]} 2. c4 {[%clk 0:03:01]}  e6 {[%clk 0:02:59]} 3. Nf3 {[%clk 0:03:01]}  Nf6 {[%clk 0:02:58]} 4. g3 {[%clk 0:03:01]}  Be7 {[%clk 0:02:56]} 5. Bg2 {[%clk 0:03:01]}  O-O {[%clk 0:02:57]} 6. O-O {[%clk 0:03:02]}  Nbd7 {[%clk 0:02:57]} 7. Qc2 {[%clk 0:02:52]}  c6 {[%clk 0:02:57]} 8. Bf4 {[%clk 0:02:46]}  b6 {[%clk 0:02:56]} 9. Nbd2 {[%clk 0:02:43]}  Bb7 {[%clk 0:02:56]} 10. Rfd1 {[%clk 0:02:40]}  h6 {[%clk 0:02:42]} 11. h4 {[%clk 0:02:35]}  Nh5 {[%clk 0:02:39]} 12. e3 {[%clk 0:02:34]}  Rc8 {[%clk 0:02:27]} 13. Rac1 {[%clk 0:02:27]}  Nhf6 {[%clk 0:01:43]} 14. Qa4 {[%clk 0:02:19]}  a6 {[%clk 0:01:42]} 15. Ne5 {[%clk 0:01:25]}  Nxe5 {[%clk 0:01:36]} 16. Bxe5 {[%clk 0:01:26]}  Nd7 {[%clk 0:01:33]} 17. cxd5 {[%clk 0:01:20]}  Nxe5 {[%clk 0:01:30]} 18. dxe5 {[%clk 0:01:12]}  cxd5 {[%clk 0:01:31]} 19. Nb3 {[%clk 0:00:53]}  b5 {[%clk 0:01:08]} 20. Qd4 {[%clk 0:00:44]}  Rc4 {[%clk 0:01:07]} 21. Qd2 {[%clk 0:00:29]}  Qb8 {[%clk 0:01:06]} 22. f4 {[%clk 0:00:19]}  Rfc8 {[%clk 0:01:07]} 23. Bf1 {[%clk 0:00:16]}  Ba8 {[%clk 0:01:04]} 24. Nd4 {[%clk 0:00:12]}  Qc7 {[%clk 0:01:01]} 25. Rb1 {[%clk 0:00:09]}  Bc5 {[%clk 0:00:56]} 26. Bxc4 {[%clk 0:00:07]}  dxc4 {[%clk 0:00:57]} 27. Kh2 {[%clk 0:00:07]}  Qb7 {[%clk 0:00:57]} 28. Qf2 {[%clk 0:00:06]}  Qe4 {[%clk 0:00:56]} 29. Rbc1 {[%clk 0:00:05]}  Bd5 {[%clk 0:00:57]} 30. Rd2 {[%clk 0:00:05]}  Bb6 {[%clk 0:00:52]} 31. a3 {[%clk 0:00:05]}  a5 {[%clk 0:00:32]} 32. Rdd1 {[%clk 0:00:05]}  b4 {[%clk 0:00:32]} 33. axb4 {[%clk 0:00:06]}  axb4 {[%clk 0:00:32]} 34. Rd2 {[%clk 0:00:06]}  Ra8 {[%clk 0:00:26]} 35. Re2 {[%clk 0:00:06]}  Ra2 {[%clk 0:00:26]} 36. Rce1 {[%clk 0:00:04]}  Bc5 {[%clk 0:00:20]} 37. Rf1 {[%clk 0:00:04]}  Qd3 {[%clk 0:00:19]} 38. Rd2 {[%clk 0:00:04]}  Qg6 {[%clk 0:00:19]} 39. f5 {[%clk 0:00:03]}  exf5 {[%clk 0:00:18]} 40. Nxf5 {[%clk 0:00:04]}  Be6 {[%clk 0:00:17]} 41. Nd4 {[%clk 0:00:04]}  Bd5 {[%clk 0:00:12]} 42. e6 {[%clk 0:00:03]}  Bxe6 {[%clk 0:00:12]} 43. Nxe6 {[%clk 0:00:03]}  Qxe6 {[%clk 0:00:13]} 44. Qf5 {[%clk 0:00:03]}  Qxf5 {[%clk 0:00:12]} 45. Rxf5 {[%clk 0:00:04]}  c3 {[%clk 0:00:11]} 46. Rg2 {[%clk 0:00:03]}  cxb2 {[%clk 0:00:09]} 47. Rf1 {[%clk 0:00:02]}  Ra1 {[%clk 0:00:10]} 48. Rgg1 {[%clk 0:00:02]}  Rxf1 {[%clk 0:00:10]} 49. Rxf1 {[%clk 0:00:03]}  Bxe3 {[%clk 0:00:10]} 50. Rb1 {[%clk 0:00:03]}  Bc1 {[%clk 0:00:11]} 51. Kg2 {[%clk 0:00:03]}  f5 {[%clk 0:00:12]} 52. Kf3 {[%clk 0:00:04]}  Kf7 {[%clk 0:00:12]} 53. Ke2 {[%clk 0:00:04]}  Ke6 {[%clk 0:00:12]} 54. Kd3 {[%clk 0:00:00]}  Kd5 {[%clk 0:00:13]} 0-1

[Event "November 21 Late 2023"]
[Site "https://www.chess.com"]
[Date "2023.11.21"]
[Round "5"]
[White "Matlakov, Maxim"]
[Black "Pakleza, Zbigniew"]
[Result "1-0"]
[Board "5"]
[TimeControl "180+1"]
[WhiteFideId "4168003"]
[BlackFideId "1119290"]
[WhiteElo "2638"]
[BlackElo "2410"]
[WhiteTeam "RUS"]
[BlackTeam "POL"]
[WhiteClock "0:00:03"]
[BlackClock "0:00:05"]

1. d4 {[%clk 0:03:00]}  d6 {[%clk 0:02:58]} 2. e4 {[%clk 0:02:59]}  Nf6 {[%clk 0:02:59]} 3. Nc3 {[%clk 0:02:59]}  c6 {[%clk 0:02:59]} 4. Nf3 {[%clk 0:02:54]}  Bg4 {[%clk 0:02:59]} 5. Be2 {[%clk 0:02:54]}  e6 {[%clk 0:02:59]} 6. h3 {[%clk 0:02:51]}  Bh5 {[%clk 0:02:59]} 7. O-O {[%clk 0:02:48]}  Be7 {[%clk 0:02:59]} 8. Be3 {[%clk 0:02:30]}  d5 {[%clk 0:02:59]} 9. e5 {[%clk 0:02:21]}  Nfd7 {[%clk 0:02:58]} 10. Nb1 {[%clk 0:02:13]}  c5 {[%clk 0:02:58]} 11. c3 {[%clk 0:02:13]}  Nc6 {[%clk 0:02:59]} 12. Nbd2 {[%clk 0:02:13]}  O-O {[%clk 0:02:58]} 13. a3 {[%clk 0:02:12]}  Rc8 {[%clk 0:02:53]} 14. b4 {[%clk 0:02:09]}  cxd4 {[%clk 0:02:53]} 15. cxd4 {[%clk 0:02:10]}  Bg6 {[%clk 0:02:38]} 16. Rc1 {[%clk 0:02:09]}  a5 {[%clk 0:02:36]} 17. b5 {[%clk 0:02:03]}  Ncb8 {[%clk 0:02:14]} 18. Qa4 {[%clk 0:02:00]}  b6 {[%clk 0:02:08]} 19. Qb3 {[%clk 0:01:51]}  f6 {[%clk 0:01:49]} 20. exf6 {[%clk 0:01:28]}  Bxf6 {[%clk 0:01:50]} 21. a4 {[%clk 0:01:25]}  Qe7 {[%clk 0:01:44]} 22. Bd3 {[%clk 0:01:23]}  Bxd3 {[%clk 0:01:34]} 23. Qxd3 {[%clk 0:01:24]}  Qb4 {[%clk 0:01:33]} 24. Ra1 {[%clk 0:01:05]}  Rc3 {[%clk 0:01:08]} 25. Qe2 {[%clk 0:01:05]}  Rfc8 {[%clk 0:01:09]} 26. Rfb1 {[%clk 0:01:03]}  Qe7 {[%clk 0:00:58]} 27. Bf4 {[%clk 0:01:03]}  Nf8 {[%clk 0:00:52]} 28. Re1 {[%clk 0:01:01]}  Nbd7 {[%clk 0:00:49]} 29. Bg3 {[%clk 0:00:55]}  Rc2 {[%clk 0:00:41]} 30. Qd1 {[%clk 0:00:44]}  Qb4 {[%clk 0:00:37]} 31. Nf1 {[%clk 0:00:40]}  R2c3 {[%clk 0:00:07]} 32. Ne3 {[%clk 0:00:39]}  Qb3 {[%clk 0:00:06]} 33. Qe2 {[%clk 0:00:36]}  h6 {[%clk 0:00:03]} 34. Ng4 {[%clk 0:00:35]}  Qc4 {[%clk 0:00:03]} 35. Qd2 {[%clk 0:00:29]}  Rc2 {[%clk 0:00:03]} 36. Qf4 {[%clk 0:00:29]}  Ng6 {[%clk 0:00:02]} 37. Qd6 {[%clk 0:00:26]}  Ndf8 {[%clk 0:00:02]} 38. Nxf6+ {[%clk 0:00:23]}  gxf6 {[%clk 0:00:02]} 39. Qxb6 {[%clk 0:00:22]}  Qb3 {[%clk 0:00:01]} 40. Qxa5 {[%clk 0:00:17]}  R8c3 {[%clk 0:00:01]} 41. Qd8 {[%clk 0:00:07]}  Rxf3 {[%clk 0:00:01]} 42. gxf3 {[%clk 0:00:08]}  Qxf3 {[%clk 0:00:02]} 43. Rxe6 {[%clk 0:00:07]}  Nf4 {[%clk 0:00:02]} 44. Qxf8+ {[%clk 0:00:03]}  Kxf8 {[%clk 0:00:03]} 45. Rxf6+ {[%clk 0:00:03]}  Kg7 {[%clk 0:00:03]} 46. Rxf4 {[%clk 0:00:04]}  Qe2 {[%clk 0:00:03]} 47. b6 {[%clk 0:00:04]}  Rb2 {[%clk 0:00:02]} 48. a5 {[%clk 0:00:05]}  Qd3 {[%clk 0:00:02]} 49. Rg4+ {[%clk 0:00:05]}  Kh7 {[%clk 0:00:02]} 50. Re1 {[%clk 0:00:05]}  Rb1 {[%clk 0:00:02]} 51. Rxb1 {[%clk 0:00:05]}  Qxb1+ {[%clk 0:00:03]} 52. Kh2 {[%clk 0:00:05]}  Qb5 {[%clk 0:00:04]} 53. Rh4 {[%clk 0:00:03]}  Qxa5 {[%clk 0:00:04]} 54. b7 {[%clk 0:00:03]}  Qb5 {[%clk 0:00:04]} 55. b8=Q {[%clk 0:00:03]}  Qxb8 {[%clk 0:00:05]} 56. Bxb8 {[%clk 0:00:03]} 1-0